[Event "January 9 Late 2024"]
[Site "https://www.chess.com"]
[Date "2024.01.09"]
[Round "11"]
[White "Joie, Sebastien"]
[Black "Sherman, Raem"]
[Result "1/2-1/2"]
[Board "51"]
[TimeControl "180+1"]
[WhiteFideId "650420"]
[BlackFideId "2822288"]
[WhiteElo "2475"]
[BlackElo "2668"]
[WhiteTeam "FRA"]
[BlackTeam "ISR"]
[WhiteClock "0:00:04"]
[BlackClock "0:00:08"]

1. d4 {[%clk 0:02:54]}  Nf6 {[%clk 0:02:47]} 2. c4 {[%clk 0:02:54]}  e6 {[%clk 0:02:37]} 3. Nc3 {[%clk 0:02:55]}  d5 {[%clk 0:02:34]} 4. Nf3 {[%clk 0:02:54]}  Be7 {[%clk 0:02:34]} 5. e3 {[%clk 0:02:53]}  O-O {[%clk 0:02:33]} 6. Bd3 {[%clk 0:02:54]}  a6 {[%clk 0:02:32]} 7. a4 {[%clk 0:02:52]}  dxc4 {[%clk 0:02:30]} 8. Bxc4 {[%clk 0:02:53]}  b6 {[%clk 0:02:28]} 9. O-O {[%clk 0:02:53]}  Bb7 {[%clk 0:02:28]} 10. Qe2 {[%clk 0:02:54]}  Nbd7 {[%clk 0:02:21]} 11. e4 {[%clk 0:02:53]}  c5 {[%clk 0:02:19]} 12. e5 {[%clk 0:02:53]}  Nd5 {[%clk 0:02:15]} 13. Bxd5 {[%clk 0:02:47]}  exd5 {[%clk 0:02:12]} 14. e6 {[%clk 0:02:47]}  cxd4 {[%clk 0:01:55]} 15. Nxd4 {[%clk 0:02:41]}  Nc5 {[%clk 0:01:47]} 16. Rd1 {[%clk 0:02:40]}  Bf6 {[%clk 0:01:34]} 17. exf7+ {[%clk 0:02:38]}  Rxf7 {[%clk 0:01:32]} 18. Be3 {[%clk 0:02:39]}  Qe8 {[%clk 0:01:27]} 19. Rac1 {[%clk 0:02:14]}  Qe5 {[%clk 0:01:17]} 20. b4 {[%clk 0:02:04]}  Ne4 {[%clk 0:01:15]} 21. Nxe4 {[%clk 0:02:02]}  dxe4 {[%clk 0:01:16]} 22. Qg4 {[%clk 0:01:44]}  Raf8 {[%clk 0:01:15]} 23. Nf5 {[%clk 0:01:21]}  Kh8 {[%clk 0:01:11]} 24. Nd6 {[%clk 0:00:48]}  Re7 {[%clk 0:01:10]} 25. Bxb6 {[%clk 0:00:39]}  Bd5 {[%clk 0:01:09]} 26. Nf5 {[%clk 0:00:35]}  Be6 {[%clk 0:00:59]} 27. Rc5 {[%clk 0:00:29]}  Qb8 {[%clk 0:00:59]} 28. a5 {[%clk 0:00:20]}  Ref7 {[%clk 0:00:59]} 29. Qxe4 {[%clk 0:00:15]}  Bb3 {[%clk 0:00:50]} 30. Re1 {[%clk 0:00:13]}  Bg5 {[%clk 0:00:38]} 31. Nd4 {[%clk 0:00:09]}  Ba4 {[%clk 0:00:30]} 32. Rxg5 {[%clk 0:00:08]}  Rxf2 {[%clk 0:00:28]} 33. Rf5 {[%clk 0:00:06]}  R2xf5 {[%clk 0:00:26]} 34. Nxf5 {[%clk 0:00:07]}  Qc8 {[%clk 0:00:26]} 35. Qe5 {[%clk 0:00:03]}  Qxf5 {[%clk 0:00:20]} 36. Qxf5 {[%clk 0:00:02]}  Rxf5 {[%clk 0:00:21]} 37. Rd1 {[%clk 0:00:02]}  h6 {[%clk 0:00:21]} 38. Rd8+ {[%clk 0:00:02]}  Kh7 {[%clk 0:00:21]} 39. h3 {[%clk 0:00:03]}  Bb5 {[%clk 0:00:22]} 40. Rc8 {[%clk 0:00:03]}  Rf1+ {[%clk 0:00:22]} 41. Kh2 {[%clk 0:00:04]}  Rb1 {[%clk 0:00:23]} 42. Bc5 {[%clk 0:00:04]}  h5 {[%clk 0:00:23]} 43. Rc7 {[%clk 0:00:05]}  Kg6 {[%clk 0:00:23]} 44. Bd4 {[%clk 0:00:05]}  Rxb4 {[%clk 0:00:23]} 45. Rxg7+ {[%clk 0:00:05]}  Kf5 {[%clk 0:00:24]} 46. Bb6 {[%clk 0:00:04]}  Rb2 {[%clk 0:00:24]} 47. Rh7 {[%clk 0:00:04]}  Kg6 {[%clk 0:00:23]} 48. Rh8 {[%clk 0:00:04]}  Bc6 {[%clk 0:00:24]} 49. Rg8+ {[%clk 0:00:04]}  Kf7 {[%clk 0:00:24]} 50. Rg5 {[%clk 0:00:05]}  Kf6 {[%clk 0:00:24]} 51. Rg3 {[%clk 0:00:05]}  Kf5 {[%clk 0:00:20]} 52. Rg8 {[%clk 0:00:04]}  Rc2 {[%clk 0:00:20]} 53. Rg7 {[%clk 0:00:05]}  Kf6 {[%clk 0:00:20]} 54. Bd4+ {[%clk 0:00:05]}  Kf5 {[%clk 0:00:20]} 55. h4 {[%clk 0:00:05]}  Rc4 {[%clk 0:00:20]} 56. Bb6 {[%clk 0:00:05]}  Rxh4+ {[%clk 0:00:20]} 57. Kg1 {[%clk 0:00:05]}  Rc4 {[%clk 0:00:20]} 58. Rf7+ {[%clk 0:00:03]}  Kg6 {[%clk 0:00:20]} 59. Ra7 {[%clk 0:00:03]}  Rc1+ {[%clk 0:00:19]} 60. Kh2 {[%clk 0:00:03]}  Bb5 {[%clk 0:00:19]} 61. Rc7 {[%clk 0:00:02]}  Rd1 {[%clk 0:00:18]} 62. Rc5 {[%clk 0:00:03]}  Rd2 {[%clk 0:00:18]} 63. Kh3 {[%clk 0:00:02]}  Ra2 {[%clk 0:00:19]} 64. Rc7 {[%clk 0:00:02]}  Bf1 {[%clk 0:00:18]} 65. Rc6+ {[%clk 0:00:02]}  Kf7 {[%clk 0:00:16]} 66. Kh4 {[%clk 0:00:02]}  Bxg2 {[%clk 0:00:16]} 67. Rc7+ {[%clk 0:00:03]}  Kg6 {[%clk 0:00:15]} 68. Rc5 {[%clk 0:00:03]}  Ra4+ {[%clk 0:00:15]} 69. Kg3 {[%clk 0:00:04]}  Bf1 {[%clk 0:00:15]} 70. Rc6+ {[%clk 0:00:03]}  Kg5 {[%clk 0:00:14]} 71. Be3+ {[%clk 0:00:03]}  Kf5 {[%clk 0:00:14]} 72. Rc5+ {[%clk 0:00:04]}  Ke4 {[%clk 0:00:14]} 73. Bh6 {[%clk 0:00:04]}  Be2 {[%clk 0:00:14]} 74. Kf2 {[%clk 0:00:04]}  Bg4 {[%clk 0:00:14]} 75. Bg7 {[%clk 0:00:03]}  Ra2+ {[%clk 0:00:13]} 76. Kg3 {[%clk 0:00:03]}  Ra3+ {[%clk 0:00:14]} 77. Kh4 {[%clk 0:00:03]}  Rh3+ {[%clk 0:00:15]} 78. Kg5 {[%clk 0:00:04]}  Rb3 {[%clk 0:00:15]} 79. Re5+ {[%clk 0:00:03]}  Kf3 {[%clk 0:00:15]} 80. Rc5 {[%clk 0:00:04]}  Ra3 {[%clk 0:00:15]} 81. Bf8 {[%clk 0:00:03]}  Ra4 {[%clk 0:00:13]} 82. Bd6 {[%clk 0:00:02]}  Rd4 {[%clk 0:00:11]} 83. Bc7 {[%clk 0:00:03]}  Ke4 {[%clk 0:00:11]} 84. Rc6 {[%clk 0:00:03]}  Rd5+ {[%clk 0:00:11]} 85. Kh4 {[%clk 0:00:03]}  Be2 {[%clk 0:00:11]} 86. Rb6 {[%clk 0:00:02]}  Bb5 {[%clk 0:00:10]} 87. Re6+ {[%clk 0:00:02]}  Kf3 {[%clk 0:00:10]} 88. Rh6 {[%clk 0:00:02]}  Rc5 {[%clk 0:00:08]} 89. Bb6 {[%clk 0:00:02]}  Rc4+ {[%clk 0:00:09]} 90. Kxh5 {[%clk 0:00:03]}  Be8+ {[%clk 0:00:09]} 91. Kg5 {[%clk 0:00:03]}  Rg4+ {[%clk 0:00:08]} 92. Kf6 {[%clk 0:00:04]}  Rc4 {[%clk 0:00:07]} 93. Ke7 {[%clk 0:00:04]}  Bb5 {[%clk 0:00:07]} 94. Rf6+ {[%clk 0:00:04]}  Ke4 {[%clk 0:00:07]} 95. Rd6 {[%clk 0:00:05]}  Ke5 {[%clk 0:00:07]} 96. Rd2 {[%clk 0:00:04]}  Re4 {[%clk 0:00:07]} 97. Kd8 {[%clk 0:00:03]}  Re1 {[%clk 0:00:06]} 98. Kc7 {[%clk 0:00:04]}  Re4 {[%clk 0:00:06]} 99. Kb8 {[%clk 0:00:04]}  Rc4 {[%clk 0:00:07]} 100. Ka7 {[%clk 0:00:04]}  Ke6 {[%clk 0:00:07]} 101. Re2+ {[%clk 0:00:04]}  Kd5 {[%clk 0:00:07]} 102. Rd2+ {[%clk 0:00:04]}  Ke6 {[%clk 0:00:07]} 103. Rd8 {[%clk 0:00:05]}  Ke7 {[%clk 0:00:08]} 104. Rd2 {[%clk 0:00:04]}  Ke6 {[%clk 0:00:08]} 1/2-1/2

[Event "January 9 Late 2024"]
[Site "https://www.chess.com"]
[Date "2024.01.09"]
[Round "11"]
[White "Brodsky, David"]
[Black "Rees, Ioan"]
[Result "1-0"]
[Board "54"]
[TimeControl "180+1"]
[WhiteFideId "2073250"]
[BlackFideId "1801236"]
[WhiteElo "2806"]
[BlackElo "2424"]
[WhiteTeam "USA"]
[BlackTeam "WLS"]
[WhiteClock "0:00:17"]
[BlackClock "0:00:14"]

1. b3 {[%clk 0:03:00]}  e5 {[%clk 0:02:59]} 2. Bb2 {[%clk 0:03:01]}  Nc6 {[%clk 0:02:59]} 3. Nf3 {[%clk 0:03:01]}  e4 {[%clk 0:02:56]} 4. Nd4 {[%clk 0:03:01]}  Nxd4 {[%clk 0:02:47]} 5. Bxd4 {[%clk 0:03:02]}  Nf6 {[%clk 0:02:46]} 6. e3 {[%clk 0:03:02]}  d5 {[%clk 0:02:46]} 7. c4 {[%clk 0:03:00]}  Be7 {[%clk 0:02:45]} 8. Nc3 {[%clk 0:02:59]}  c6 {[%clk 0:02:35]} 9. cxd5 {[%clk 0:02:59]}  cxd5 {[%clk 0:02:34]} 10. Bb5+ {[%clk 0:02:59]}  Bd7 {[%clk 0:02:31]} 11. Bxd7+ {[%clk 0:02:59]}  Qxd7 {[%clk 0:02:32]} 12. O-O {[%clk 0:03:00]}  O-O {[%clk 0:02:31]} 13. f3 {[%clk 0:02:56]}  a6 {[%clk 0:02:26]} 14. Rc1 {[%clk 0:02:42]}  Rac8 {[%clk 0:02:24]} 15. Bxf6 {[%clk 0:02:34]}  Bxf6 {[%clk 0:02:22]} 16. fxe4 {[%clk 0:02:34]}  dxe4 {[%clk 0:02:11]} 17. Nxe4 {[%clk 0:02:32]}  Bb2 {[%clk 0:02:04]} 18. Rxc8 {[%clk 0:02:20]}  Rxc8 {[%clk 0:02:05]} 19. Qf3 {[%clk 0:02:20]}  Be5 {[%clk 0:01:56]} 20. d4 {[%clk 0:02:18]}  Bb8 {[%clk 0:01:55]} 21. Nc5 {[%clk 0:01:57]}  Qc7 {[%clk 0:01:53]} 22. g3 {[%clk 0:01:56]}  b6 {[%clk 0:01:43]} 23. Nxa6 {[%clk 0:01:52]}  Qe7 {[%clk 0:01:44]} 24. Nxb8 {[%clk 0:01:47]}  Rxb8 {[%clk 0:01:43]} 25. Rc1 {[%clk 0:01:46]}  h6 {[%clk 0:01:40]} 26. Kf2 {[%clk 0:01:44]}  b5 {[%clk 0:01:36]} 27. Qf5 {[%clk 0:01:42]}  Qe8 {[%clk 0:01:31]} 28. Rc7 {[%clk 0:01:39]}  b4 {[%clk 0:01:30]} 29. Kf3 {[%clk 0:01:12]}  Rd8 {[%clk 0:01:24]} 30. Qc5 {[%clk 0:01:08]}  Qe6 {[%clk 0:01:19]} 31. Qe7 {[%clk 0:00:54]}  Qf5+ {[%clk 0:01:17]} 32. Kg2 {[%clk 0:00:54]}  Rf8 {[%clk 0:01:03]} 33. Qxb4 {[%clk 0:00:43]}  Qd3 {[%clk 0:00:55]} 34. Qe1 {[%clk 0:00:41]}  Qe4+ {[%clk 0:00:53]} 35. Kg1 {[%clk 0:00:41]}  Ra8 {[%clk 0:00:50]} 36. a4 {[%clk 0:00:40]}  Rb8 {[%clk 0:00:48]} 37. Rc3 {[%clk 0:00:40]}  Rd8 {[%clk 0:00:41]} 38. Qd2 {[%clk 0:00:28]}  h5 {[%clk 0:00:38]} 39. Qd3 {[%clk 0:00:28]}  Qg4 {[%clk 0:00:32]} 40. d5 {[%clk 0:00:19]}  h4 {[%clk 0:00:31]} 41. Rc4 {[%clk 0:00:19]}  Qf3 {[%clk 0:00:23]} 42. Rf4 {[%clk 0:00:19]}  Qxd5 {[%clk 0:00:14]} 43. Rd4 {[%clk 0:00:17]} 1-0

[Event "January 9 Late 2024"]
[Site "https://www.chess.com"]
[Date "2024.01.09"]
[Round "11"]
[White "Lin, Bryan Enming"]
[Black "Dourerassou, Jonathan"]
[Result "1-0"]
[Board "55"]
[TimeControl "180+1"]
[WhiteFideId "30987121"]
[BlackFideId "628050"]
[WhiteElo "2586"]
[BlackElo "2784"]
[WhiteTeam "USA"]
[BlackTeam "FRA"]
[WhiteClock "0:01:23"]
[BlackClock "0:00:00"]

1. e4 {[%clk 0:03:00]}  d5 {[%clk 0:02:58]} 2. exd5 {[%clk 0:03:01]}  Qxd5 {[%clk 0:02:59]} 3. Nc3 {[%clk 0:03:01]}  Qd8 {[%clk 0:02:59]} 4. d4 {[%clk 0:03:02]}  g6 {[%clk 0:02:59]} 5. Nf3 {[%clk 0:03:02]}  Bg7 {[%clk 0:03:00]} 6. h3 {[%clk 0:03:02]}  Nf6 {[%clk 0:03:00]} 7. Bc4 {[%clk 0:03:02]}  O-O {[%clk 0:03:00]} 8. O-O {[%clk 0:03:02]}  a6 {[%clk 0:03:00]} 9. a4 {[%clk 0:03:02]}  b6 {[%clk 0:03:00]} 10. Re1 {[%clk 0:03:02]}  Bb7 {[%clk 0:03:01]} 11. Bf4 {[%clk 0:02:59]}  e6 {[%clk 0:03:00]} 12. Bb3 {[%clk 0:02:51]}  Nc6 {[%clk 0:03:00]} 13. d5 {[%clk 0:02:49]}  exd5 {[%clk 0:02:59]} 14. Nxd5 {[%clk 0:02:50]}  Nxd5 {[%clk 0:02:57]} 15. Bxd5 {[%clk 0:02:51]}  Bxb2 {[%clk 0:02:37]} 16. Rb1 {[%clk 0:02:50]}  Bc3 {[%clk 0:02:36]} 17. Re3 {[%clk 0:02:49]}  Bg7 {[%clk 0:02:36]} 18. Bxc6 {[%clk 0:02:45]}  Bxc6 {[%clk 0:02:33]} 19. Qxd8 {[%clk 0:02:45]}  Rfxd8 {[%clk 0:02:32]} 20. Bxc7 {[%clk 0:02:45]}  Rdc8 {[%clk 0:02:30]} 21. Bxb6 {[%clk 0:02:34]}  Bxa4 {[%clk 0:02:25]} 22. Bd4 {[%clk 0:02:30]}  Bxc2 {[%clk 0:02:24]} 23. Rb7 {[%clk 0:02:30]}  Bf8 {[%clk 0:01:55]} 24. Ng5 {[%clk 0:02:21]}  Rd8 {[%clk 0:01:26]} 25. Bf6 {[%clk 0:02:13]}  Rd6 {[%clk 0:01:07]} 26. Be7 {[%clk 0:02:05]}  Rd1+ {[%clk 0:01:05]} 27. Kh2 {[%clk 0:02:05]}  Bg7 {[%clk 0:00:42]} 28. Ba3 {[%clk 0:02:02]}  Bh6 {[%clk 0:00:37]} 29. Nxf7 {[%clk 0:01:54]}  Bxe3 {[%clk 0:00:35]} 30. fxe3 {[%clk 0:01:55]}  Rb1 {[%clk 0:00:25]} 31. Nh6+ {[%clk 0:01:53]}  Kh8 {[%clk 0:00:25]} 32. Rc7 {[%clk 0:01:52]}  Rb3 {[%clk 0:00:24]} 33. Bd6 {[%clk 0:01:47]}  Rxe3 {[%clk 0:00:24]} 34. Rxc2 {[%clk 0:01:45]}  Kg7 {[%clk 0:00:20]} 35. Rc7+ {[%clk 0:01:43]}  Kh8 {[%clk 0:00:17]} 36. Bc5 {[%clk 0:01:41]}  Re4 {[%clk 0:00:17]} 37. Ba3 {[%clk 0:01:35]}  Rb8 {[%clk 0:00:16]} 38. Nf7+ {[%clk 0:01:34]}  Kg8 {[%clk 0:00:15]} 39. Nh6+ {[%clk 0:01:33]}  Kh8 {[%clk 0:00:15]} 40. Bc1 {[%clk 0:01:31]}  a5 {[%clk 0:00:15]} 41. Bg5 {[%clk 0:01:30]}  Re6 {[%clk 0:00:15]} 42. Rf7 {[%clk 0:01:28]}  a4 {[%clk 0:00:13]} 43. Ra7 {[%clk 0:01:28]}  Rc8 {[%clk 0:00:06]} 44. Rxa4 {[%clk 0:01:28]}  Rf8 {[%clk 0:00:06]} 45. Ra7 {[%clk 0:01:27]}  Re2 {[%clk 0:00:05]} 46. Ng4 {[%clk 0:01:22]}  h5 {[%clk 0:00:00]} 47. Bf6+ {[%clk 0:01:23]} 1-0

[Event "January 9 Late 2024"]
[Site "https://www.chess.com"]
[Date "2024.01.09"]
[Round "11"]
[White "Agibileg, Uurtsaikh"]
[Black "Pham, Le Thao Nguyen"]
[Result "0-1"]
[Board "56"]
[TimeControl "180+1"]
[WhiteFideId "4901606"]
[BlackFideId "12401226"]
[WhiteElo "2712"]
[BlackElo "2583"]
[WhiteTeam "MGL"]
[BlackTeam "VIE"]
[WhiteClock "0:00:08"]
[BlackClock "0:00:07"]

1. d4 {[%clk 0:03:00]}  d5 {[%clk 0:02:57]} 2. c4 {[%clk 0:01:36]}  c6 {[%clk 0:02:56]} 3. Nf3 {[%clk 0:01:35]}  Nf6 {[%clk 0:02:56]} 4. Nc3 {[%clk 0:01:35]}  a6 {[%clk 0:02:55]} 5. g3 {[%clk 0:01:32]}  dxc4 {[%clk 0:02:48]} 6. Bg2 {[%clk 0:01:33]}  b5 {[%clk 0:02:48]} 7. Ne5 {[%clk 0:01:32]}  Bb7 {[%clk 0:02:46]} 8. a4 {[%clk 0:01:31]}  Qc8 {[%clk 0:02:45]} 9. O-O {[%clk 0:01:29]}  e6 {[%clk 0:02:41]} 10. axb5 {[%clk 0:01:20]}  cxb5 {[%clk 0:02:33]} 11. d5 {[%clk 0:01:20]}  Bb4 {[%clk 0:01:31]} 12. dxe6 {[%clk 0:00:58]}  fxe6 {[%clk 0:01:30]} 13. Bh3 {[%clk 0:00:49]}  O-O {[%clk 0:01:27]} 14. Bg5 {[%clk 0:00:41]}  Nc6 {[%clk 0:01:25]} 15. Nf3 {[%clk 0:00:40]}  Ne7 {[%clk 0:01:13]} 16. Nd4 {[%clk 0:00:38]}  Nf5 {[%clk 0:01:10]} 17. Bxf6 {[%clk 0:00:17]}  Rxf6 {[%clk 0:01:08]} 18. e4 {[%clk 0:00:18]}  Nxd4 {[%clk 0:00:59]} 19. Qxd4 {[%clk 0:00:17]}  Qc5 {[%clk 0:00:39]} 20. Qd7 {[%clk 0:00:17]}  Qc6 {[%clk 0:00:39]} 21. Qd4 {[%clk 0:00:14]}  Bc5 {[%clk 0:00:36]} 22. Qe5 {[%clk 0:00:14]}  Raf8 {[%clk 0:00:36]} 23. Nd1 {[%clk 0:00:12]}  Qxe4 {[%clk 0:00:34]} 24. Qxe4 {[%clk 0:00:12]}  Bxe4 {[%clk 0:00:34]} 25. Re1 {[%clk 0:00:11]}  Bf5 {[%clk 0:00:25]} 26. Bxf5 {[%clk 0:00:10]}  exf5 {[%clk 0:00:25]} 27. Kg2 {[%clk 0:00:06]}  f4 {[%clk 0:00:24]} 28. Nc3 {[%clk 0:00:05]}  fxg3 {[%clk 0:00:23]} 29. fxg3 {[%clk 0:00:06]}  Rf2+ {[%clk 0:00:21]} 30. Kh3 {[%clk 0:00:07]}  R8f6 {[%clk 0:00:19]} 31. Ne4 {[%clk 0:00:06]}  Rh6+ {[%clk 0:00:20]} 32. Kg4 {[%clk 0:00:07]}  Rg6+ {[%clk 0:00:15]} 33. Kh3 {[%clk 0:00:07]}  Rf5 {[%clk 0:00:16]} 34. Nxc5 {[%clk 0:00:07]}  Rxc5 {[%clk 0:00:17]} 35. Re8+ {[%clk 0:00:06]}  Kf7 {[%clk 0:00:17]} 36. Rae1 {[%clk 0:00:07]}  Rf6 {[%clk 0:00:17]} 37. R8e7+ {[%clk 0:00:06]}  Kg6 {[%clk 0:00:18]} 38. Ra7 {[%clk 0:00:06]}  Rg5 {[%clk 0:00:11]} 39. Ree7 {[%clk 0:00:06]}  Kh6 {[%clk 0:00:11]} 40. Kh4 {[%clk 0:00:05]}  b4 {[%clk 0:00:09]} 41. g4 {[%clk 0:00:05]}  Rfg6 {[%clk 0:00:08]} 42. h3 {[%clk 0:00:05]}  Rc6 {[%clk 0:00:08]} 43. Re4 {[%clk 0:00:02]}  c3 {[%clk 0:00:08]} 44. bxc3 {[%clk 0:00:03]}  bxc3 {[%clk 0:00:09]} 45. Re1 {[%clk 0:00:03]}  c2 {[%clk 0:00:09]} 46. Rc1 {[%clk 0:00:04]}  Rb5 {[%clk 0:00:10]} 47. Rf7 {[%clk 0:00:04]}  Rb1 {[%clk 0:00:09]} 48. Rff1 {[%clk 0:00:03]}  Rxc1 {[%clk 0:00:10]} 49. Rxc1 {[%clk 0:00:03]}  a5 {[%clk 0:00:10]} 50. Kg3 {[%clk 0:00:04]}  a4 {[%clk 0:00:10]} 51. Kf4 {[%clk 0:00:04]}  a3 {[%clk 0:00:11]} 52. Kf5 {[%clk 0:00:05]}  Rc5+ {[%clk 0:00:08]} 53. Kf4 {[%clk 0:00:05]}  a2 {[%clk 0:00:08]} 54. h4 {[%clk 0:00:05]}  a1=Q {[%clk 0:00:08]} 55. Rxa1 {[%clk 0:00:06]}  c1=Q+ {[%clk 0:00:08]} 56. Rxc1 {[%clk 0:00:07]}  Rxc1 {[%clk 0:00:08]} 57. h5 {[%clk 0:00:08]}  g5+ {[%clk 0:00:07]} 58. Kf5 {[%clk 0:00:08]}  Rc4 {[%clk 0:00:07]} 0-1

[Event "January 9 Late 2024"]
[Site "https://www.chess.com"]
[Date "2024.01.09"]
[Round "11"]
[White "Asish Panda"]
[Black "Annaberdiyev, Meylis"]
[Result "1-0"]
[Board "58"]
[TimeControl "180+1"]
[WhiteFideId "45012458"]
[BlackFideId "14000563"]
[WhiteElo "2576"]
[BlackElo "2661"]
[WhiteTeam "IND"]
[BlackTeam "TKM"]
[WhiteClock "0:00:06"]
[BlackClock "0:00:00"]

1. e4 {[%clk 0:03:00]}  c5 {[%clk 0:02:59]} 2. Nf3 {[%clk 0:03:00]}  Nc6 {[%clk 0:02:59]} 3. Bb5 {[%clk 0:02:59]}  g6 {[%clk 0:02:58]} 4. O-O {[%clk 0:02:59]}  Bg7 {[%clk 0:02:58]} 5. c3 {[%clk 0:02:57]}  Nf6 {[%clk 0:02:58]} 6. Re1 {[%clk 0:02:56]}  O-O {[%clk 0:02:57]} 7. d4 {[%clk 0:02:56]}  d5 {[%clk 0:02:57]} 8. e5 {[%clk 0:02:52]}  Ne4 {[%clk 0:02:58]} 9. Nbd2 {[%clk 0:02:51]}  Qb6 {[%clk 0:02:46]} 10. Bxc6 {[%clk 0:02:49]}  Qxc6 {[%clk 0:02:46]} 11. Nxe4 {[%clk 0:02:48]}  dxe4 {[%clk 0:02:45]} 12. Nd2 {[%clk 0:02:49]}  cxd4 {[%clk 0:02:41]} 13. cxd4 {[%clk 0:02:50]}  Bf5 {[%clk 0:01:58]} 14. g4 {[%clk 0:02:48]}  Be6 {[%clk 0:01:57]} 15. Nxe4 {[%clk 0:02:43]}  Rfd8 {[%clk 0:01:55]} 16. Ng3 {[%clk 0:02:42]}  Rac8 {[%clk 0:01:47]} 17. Bg5 {[%clk 0:02:34]}  Qd7 {[%clk 0:01:45]} 18. h3 {[%clk 0:02:28]}  h6 {[%clk 0:01:04]} 19. Be3 {[%clk 0:02:18]}  Qd5 {[%clk 0:01:04]} 20. Ne2 {[%clk 0:02:10]}  Bd7 {[%clk 0:00:29]} 21. Nc3 {[%clk 0:02:05]}  Rxc3 {[%clk 0:00:29]} 22. bxc3 {[%clk 0:02:03]}  Bc6 {[%clk 0:00:30]} 23. f3 {[%clk 0:02:00]}  b5 {[%clk 0:00:28]} 24. Kf2 {[%clk 0:01:57]}  f6 {[%clk 0:00:27]} 25. Bf4 {[%clk 0:01:49]}  Kh7 {[%clk 0:00:23]} 26. Qe2 {[%clk 0:01:40]}  b4 {[%clk 0:00:18]} 27. cxb4 {[%clk 0:01:20]}  Qxd4+ {[%clk 0:00:18]} 28. Qe3 {[%clk 0:01:20]}  Qxb4 {[%clk 0:00:16]} 29. exf6 {[%clk 0:01:09]}  exf6 {[%clk 0:00:14]} 30. Rad1 {[%clk 0:01:03]}  Re8 {[%clk 0:00:14]} 31. Qd2 {[%clk 0:00:55]}  Qa3 {[%clk 0:00:11]} 32. Rxe8 {[%clk 0:00:51]}  Qxf3+ {[%clk 0:00:11]} 33. Ke1 {[%clk 0:00:50]}  Bxe8 {[%clk 0:00:08]} 34. Qe3 {[%clk 0:00:48]}  Qh1+ {[%clk 0:00:07]} 35. Ke2 {[%clk 0:00:47]}  Qg2+ {[%clk 0:00:05]} 36. Ke1 {[%clk 0:00:47]}  Bb5 {[%clk 0:00:04]} 37. Bg3 {[%clk 0:00:30]}  f5 {[%clk 0:00:04]} 38. Rc1 {[%clk 0:00:22]}  Qf1+ {[%clk 0:00:03]} 39. Kd2 {[%clk 0:00:21]}  Qg2+ {[%clk 0:00:03]} 40. Ke1 {[%clk 0:00:20]}  f4 {[%clk 0:00:02]} 41. Bxf4 {[%clk 0:00:16]}  Qh1+ {[%clk 0:00:02]} 42. Kd2 {[%clk 0:00:16]}  Qg2+ {[%clk 0:00:02]} 43. Kd1 {[%clk 0:00:14]}  Ba4+ {[%clk 0:00:02]} 44. Ke1 {[%clk 0:00:14]}  Bb5 {[%clk 0:00:02]} 45. Rc7 {[%clk 0:00:09]}  Qh1+ {[%clk 0:00:01]} 46. Kd2 {[%clk 0:00:08]}  Qg2+ {[%clk 0:00:00]} 47. Kd1 {[%clk 0:00:06]} 1-0

[Event "January 9 Late 2024"]
[Site "https://www.chess.com"]
[Date "2024.01.09"]
[Round "11"]
[White "Sun, Rick"]
[Black "Yagupov, Igor"]
[Result "1-0"]
[Board "59"]
[TimeControl "180+1"]
[WhiteFideId "30909481"]
[BlackFideId "4113632"]
[WhiteElo "2647"]
[BlackElo "2574"]
[WhiteTeam "USA"]
[BlackTeam "RUS"]
[WhiteClock "0:00:03"]
[BlackClock "0:00:08"]

1. d4 {[%clk 0:03:00]}  d5 {[%clk 0:02:59]} 2. Nc3 {[%clk 0:03:01]}  Nf6 {[%clk 0:02:58]} 3. Bf4 {[%clk 0:03:02]}  a6 {[%clk 0:02:57]} 4. e3 {[%clk 0:03:02]}  e6 {[%clk 0:02:56]} 5. Nf3 {[%clk 0:03:01]}  b5 {[%clk 0:02:55]} 6. Bd3 {[%clk 0:03:01]}  Bb7 {[%clk 0:02:55]} 7. O-O {[%clk 0:03:02]}  Nbd7 {[%clk 0:02:54]} 8. Ne5 {[%clk 0:03:02]}  c5 {[%clk 0:02:52]} 9. Re1 {[%clk 0:02:58]}  Be7 {[%clk 0:02:51]} 10. Qf3 {[%clk 0:02:56]}  c4 {[%clk 0:02:45]} 11. Bf1 {[%clk 0:02:53]}  O-O {[%clk 0:02:42]} 12. a3 {[%clk 0:02:51]}  Ne4 {[%clk 0:02:30]} 13. Nxe4 {[%clk 0:02:38]}  dxe4 {[%clk 0:02:31]} 14. Qh3 {[%clk 0:02:37]}  Nxe5 {[%clk 0:02:24]} 15. Bxe5 {[%clk 0:02:34]}  Bd6 {[%clk 0:02:20]} 16. Rad1 {[%clk 0:02:21]}  Qc7 {[%clk 0:02:18]} 17. Qg3 {[%clk 0:01:57]}  Bxe5 {[%clk 0:02:18]} 18. dxe5 {[%clk 0:01:58]}  Rad8 {[%clk 0:02:11]} 19. Rd6 {[%clk 0:01:58]}  Bd5 {[%clk 0:02:09]} 20. Rd1 {[%clk 0:01:54]}  f6 {[%clk 0:01:59]} 21. Rxd8 {[%clk 0:01:50]}  Rxd8 {[%clk 0:01:59]} 22. f3 {[%clk 0:01:30]}  f5 {[%clk 0:01:52]} 23. fxe4 {[%clk 0:01:16]}  Bxe4 {[%clk 0:01:52]} 24. Rd6 {[%clk 0:00:45]}  Bxc2 {[%clk 0:01:28]} 25. a4 {[%clk 0:00:30]}  Be4 {[%clk 0:01:22]} 26. Rxa6 {[%clk 0:00:15]}  Rd1 {[%clk 0:01:12]} 27. Qh4 {[%clk 0:00:15]}  h6 {[%clk 0:01:07]} 28. Qh5 {[%clk 0:00:13]}  Bd3 {[%clk 0:00:51]} 29. Qxd1 {[%clk 0:00:12]}  Qxe5 {[%clk 0:00:42]} 30. Bxd3 {[%clk 0:00:09]}  Qxe3+ {[%clk 0:00:43]} 31. Kh1 {[%clk 0:00:09]}  cxd3 {[%clk 0:00:42]} 32. Rd6 {[%clk 0:00:09]}  bxa4 {[%clk 0:00:41]} 33. Rxd3 {[%clk 0:00:08]}  Qe4 {[%clk 0:00:40]} 34. h3 {[%clk 0:00:06]}  Kh7 {[%clk 0:00:40]} 35. Rf3 {[%clk 0:00:05]}  Qb4 {[%clk 0:00:38]} 36. Qe2 {[%clk 0:00:02]}  Qd6 {[%clk 0:00:34]} 37. Rf2 {[%clk 0:00:02]}  Kg6 {[%clk 0:00:33]} 38. Qd2 {[%clk 0:00:03]}  Qc6 {[%clk 0:00:32]} 39. Re2 {[%clk 0:00:03]}  Kf7 {[%clk 0:00:30]} 40. Qc3 {[%clk 0:00:03]}  Qd5 {[%clk 0:00:29]} 41. Rd2 {[%clk 0:00:03]}  Qe4 {[%clk 0:00:29]} 42. Qc2 {[%clk 0:00:02]}  Qe5 {[%clk 0:00:26]} 43. Re2 {[%clk 0:00:02]}  Qb5 {[%clk 0:00:24]} 44. Qd2 {[%clk 0:00:02]}  Kf6 {[%clk 0:00:19]} 45. Kg1 {[%clk 0:00:01]}  Qc5+ {[%clk 0:00:16]} 46. Kh1 {[%clk 0:00:02]}  Qc6 {[%clk 0:00:13]} 47. Qc3+ {[%clk 0:00:03]}  Kf7 {[%clk 0:00:08]} 48. Qxc6 {[%clk 0:00:03]} 1-0